fUSD/lending_fUSD_20260311
["ID","MTS","AMOUNT","RATE_DAILY","PERIOD"]
[408224255,1773263449668,-3490294.54337675,0.0002,2]
[408224256,1773263449677,-221.66,0.0002,7]
[408224257,1773263449686,-285.595006,0.0002,2]
[408224258,1773263449695,-285.595006,0.0002,2]
[408224259,1773263449705,-285.595006,0.0002,2]
[408224260,1773263449713,-285.595006,0.0002,2]
[408224261,1773263449722,-285.595006,0.0002,2]
[408224262,1773263449732,-285.595006,0.0002,2]
[408224263,1773263449741,-285.595006,0.0002,2]
[408224264,1773263449751,-285.595006,0.0002,2]
[408224265,1773263449760,-285.595006,0.0002,2]
[408224266,1773263449770,-285.595006,0.0002,2]
[408224267,1773263449780,-285.595006,0.0002,2]
[408224268,1773263449789,-285.595006,0.0002,2]
[408224269,1773263449799,-1004.21021829,0.0002,2]
[408224270,1773263449809,-300.0,0.0002,3]
[408224271,1773263449819,-300.0,0.0002,3]
[408224272,1773263449829,-300.0,0.0002,3]
[408224273,1773263449838,-300.0,0.0002,3]
[408224274,1773263449847,-300.0,0.0002,3]
[408224275,1773263449866,-1259.25926,0.0002,2]
[408224276,1773263449876,-2115.27358637,0.0002,2]
[408224277,1773263449886,-151.0,0.0002,2]
[408224278,1773263449896,-151.0,0.0002,2]
[408224279,1773263449905,-151.0,0.0002,2]
[408224280,1773263449916,-156.690195,0.0002,2]
[408224281,1773263449926,-156.690195,0.0002,2]
[408224282,1773263449938,-156.690195,0.0002,2]
[408224283,1773263449948,-156.690195,0.0002,2]
[408224284,1773263449957,-156.690195,0.0002,2]
[408224285,1773263449967,-156.690195,0.0002,2]
[408224286,1773263449976,-156.690195,0.0002,2]
[408224287,1773263449986,-156.690195,0.0002,2]
[408224288,1773263449996,-156.690195,0.0002,2]
[408224289,1773263450006,-156.690195,0.0002,2]
[408224290,1773263450016,-156.690195,0.0002,2]
[408224291,1773263450025,-156.690195,0.0002,2]
[408224292,1773263450035,-1586.748894,0.0002,2]
[408224293,1773263450045,-1586.748894,0.0002,2]
[408224294,1773263450055,-1586.748894,0.0002,2]
[408224295,1773263450064,-1586.748894,0.0002,2]
[408224296,1773263450074,-1586.748894,0.0002,2]
[408224297,1773263450083,-1586.748894,0.0002,2]
[408224298,1773263450093,-1586.748894,0.0002,2]
[408224299,1773263450103,-1586.748894,0.0002,2]
[408224300,1773263450112,-1586.748894,0.0002,2]
[408224301,1773263450122,-1586.748894,0.0002,2]
[408224302,1773263450132,-1586.748894,0.0002,2]
[408224303,1773263450142,-1586.748894,0.0002,2]
[408224304,1773263450152,-1181.27,0.0002,7]
[408224305,1773263450162,-151.0,0.0002,2]
[408224306,1773263450176,-151.0,0.0002,2]
[408224307,1773263450185,-151.0,0.0002,2]
[408224308,1773263450383,-151.0,0.0002,2]
[408224309,1773263450394,-151.0,0.0002,2]
[408224310,1773263450404,-151.0,0.0002,2]
[408224311,1773263450414,-151.0,0.0002,2]
[408224312,1773263450424,-151.0,0.0002,2]
[408224313,1773263450434,-151.0,0.0002,2]
[408224314,1773263450444,-151.0,0.0002,2]
[408224315,1773263450453,-151.0,0.0002,2]
[408224316,1773263450467,-238.31788,0.0002,2]
[408224317,1773263450477,-151.0,0.0002,2]
[408224318,1773263450487,-151.0,0.0002,2]
[408224319,1773263450497,-151.0,0.0002,2]
[408224320,1773263450507,-151.0,0.0002,2]
[408224321,1773263450516,-151.0,0.0002,2]
[408224322,1773263450526,-151.0,0.0002,2]
[408224323,1773263450536,-190.608533,0.0002,2]
[408224324,1773263450545,-397.880876,0.0002,2]
[408224325,1773263450555,-151.0,0.0002,2]
[408224326,1773263450564,-397.880876,0.0002,2]
[408224327,1773263450573,-151.0,0.0002,2]
[408224328,1773263450583,-397.880876,0.0002,2]
[408224329,1773263450593,-151.0,0.0002,2]
[408224330,1773263450602,-397.880876,0.0002,2]
[408224331,1773263450612,-151.0,0.0002,2]
[408224332,1773263450622,-397.880876,0.0002,2]
[408224333,1773263450631,-151.0,0.0002,2]
[408224334,1773263450640,-397.880876,0.0002,2]
[408224335,1773263450650,-151.0,0.0002,2]
[408224336,1773263450660,-397.880876,0.0002,2]
[408224337,1773263450670,-151.0,0.0002,2]
[408224338,1773263450679,-397.880876,0.0002,2]
[408224339,1773263450688,-151.0,0.0002,2]
[408224340,1773263450698,-397.880876,0.0002,2]
[408224341,1773263450707,-151.0,0.0002,2]
[408224342,1773263450716,-397.880876,0.0002,2]
[408224343,1773263450726,-282.493206,0.0002,2]
[408224344,1773263450735,-397.880876,0.0002,2]
[408224345,1773263450744,-397.880876,0.0002,2]
[408224346,1773263450754,-151.0,0.0002,2]
[408224347,1773263450763,-151.0,0.0002,2]
[408224348,1773263450773,-151.0,0.0002,2]
[408224349,1773263450782,-151.0,0.0002,2]
[408224350,1773263450792,-151.0,0.0002,2]
[408224351,1773263450803,-533.36,0.00020045,2]
[408224352,1773263450812,-168.0,0.00020046,2]
[408224353,1773263450822,-500.0,0.00020052,2]
[408224354,1773263450832,-500.0,0.00020052,2]
[408224355,1773263450842,-168.0,0.00020101,2]
[408224356,1773263450851,-500.0,0.00020107,2]
[408224357,1773263450861,-500.0,0.00020107,2]
[408224358,1773263450870,-168.0,0.00020123,2]
[408224359,1773263450880,-509.0,0.0002015,4]
[408224360,1773263450890,-500.0,0.00020161,2]
[408224361,1773263450900,-500.0,0.00020161,2]
[408224362,1773263450910,-1259.25926,0.000202,2]
[408224363,1773263450919,-210.0,0.00020201,2]
[408224364,1773263450929,-399.0,0.00020216,2]
[408224365,1773263450938,-500.0,0.00020216,2]
[408224366,1773263450948,-1250.29,0.00020229,2]
[408224367,1773263450957,-168.0,0.00020263,2]
[408224368,1773263450967,-500.0,0.00020271,2]
[408224369,1773263450977,-587.0,0.00020279,2]
[408224370,1773263450986,-166.67,0.00020314,2]
[408224371,1773263450996,-533.36,0.00020319,2]
[408224372,1773263451005,-168.0,0.00020322,2]
[408224373,1773263451015,-1536.04360649,0.00020343,2]
[408224374,1773263451024,-200.0,0.00020343,2]
[408224375,1773263451034,-200.0,0.00020343,2]
[408224376,1773263451044,-312.13772435,0.00020343,2]
[408224377,1773263451053,-168.0,0.00020348,2]
[408224378,1773263451063,-201.93286099,0.00020356,2]
[408224379,1773263451073,-304.02480851,0.00020356,2]
[408224380,1773263451083,-168.0,0.00020369,2]
[408224381,1773263451092,-168.0,0.00020387,2]
[408224382,1773263451101,-1259.25926,0.000204,2]
[408224383,1773263451111,-1645.38,0.00020435,2]
[408224384,1773263451121,-166.66,0.00020462,2]
[408224385,1773263451130,-210.0,0.0002048,2]
[408224386,1773263451139,-1163.1,0.00020532,2]
[408224387,1773263451149,-168.0,0.00020535,2]
[408224388,1773263451158,-168.0,0.00020584,2]
[408224389,1773263451172,-168.0,0.0002059,2]
[408224390,1773263451182,-533.36,0.00020593,2]
[408224391,1773263451191,-1259.25926,0.000206,2]
[408224392,1773263451199,-168.0,0.0002062,2]
[408224393,1773263451210,-168.0,0.00020699,2]
[408224394,1773263451219,-1250.29,0.000207,2]
[408224395,1773263451228,-485.24,0.00020702,2]
[408224396,1773263451238,-168.0,0.00020725,2]
[408224397,1773263451247,-916.59,0.00020732,2]
[408224398,1773263451256,-1628.35,0.00020732,2]
[408224399,1773263451265,-168.0,0.00020781,2]
[408224400,1773263451274,-1259.25926,0.000208,2]
[408224401,1773263451284,-168.0,0.0002082,2]
[408224402,1773263451293,-533.36,0.00020867,2]
[408224403,1773263451302,-172.95802059,0.00020884,2]
[408224404,1773263451311,-160.0,0.00020884,2]
[408224405,1773263451320,-1592.87721993,0.00020891,2]
[408224406,1773263451329,-205.33524266,0.00020891,2]
[408224407,1773263451338,-200.0,0.00020891,2]
[408224408,1773263451347,-323.68682015,0.00020891,2]
[408224409,1773263451357,-599.60298507,0.00020903,2]
[408224410,1773263451366,-209.40437684,0.00020904,2]
[408224411,1773263451375,-286.99980122,0.00020904,2]
[408224412,1773263451384,-168.0,0.00020969,2]
[408224413,1773263451394,-485.24,0.00020976,2]
[408224414,1773263451403,-2807.0,0.00020984,2]
[408224415,1773263451412,-1259.25926,0.00021,2]
[408224416,1773263451422,-2000.0,0.0002112,2]
[408224417,1773263451431,-168.0,0.0002115,2]
[408224418,1773263451441,-166.66,0.00021213,2]
[408224419,1773263451450,-485.24,0.0002125,2]
[408224420,1773263451459,-557.97,0.00021269,2]
[408224421,1773263451468,-166.67,0.00021373,2]
[408224422,1773263451478,-151.0,0.00021438,2]
[408224423,1773263451488,-1651.81367706,0.00021439,2]
[408224424,1773263451497,-200.0,0.00021439,2]
[408224425,1773263451506,-230.30653017,0.00021439,2]
[408224426,1773263451515,-217.15233878,0.00021452,2]
[408224427,1773263451524,-404.69,0.00021524,2]
[408224428,1773263451533,-3084.25793963,0.00021603,9]
[408224429,1773263451542,-1181.27,0.000217,7]
[408224430,1773263451550,-151.41229636,0.0002185,5]
[408224431,1773263451560,-5000.0,0.00021918,2]
[408224432,1773263451568,-151.47,0.00021918,2]
[408224433,1773263451577,-1712.93078312,0.00021987,2]
[408224434,1773263451586,-205.64499173,0.00021987,2]
[408224435,1773263451596,-225.18697532,0.00022,2]
[408224436,1773263451604,-981.71,0.00022,7]
[408224437,1773263451613,-462.40634587,0.00022148,10]
[408224438,1773263451622,-756.0,0.00022149,2]
[408224439,1773263451631,-851.0,0.00022166,2]
[408224440,1773263451640,-848.0,0.0002232,2]
[408224441,1773263451650,-2806.0,0.0002232,2]
[408224442,1773263451659,-166.67,0.00022432,2]
[408224443,1773263451667,-175.41,0.00022458,2]
[408224444,1773263451677,-1776.30922209,0.00022535,2]
[408224445,1773263451686,-233.51889341,0.00022548,2]
[408224446,1773263451695,-2905.4595512,0.00022562,2]
[408224447,1773263451704,-752.5969599,0.00022562,2]
[408224448,1773263451713,-97970.1420684,0.00022599,2]
[408224449,1773263451723,-16033.5538124,0.00022599,2]
[408224450,1773263451732,-2807.0,0.0002264,3]
[408224451,1773263451740,-30000.0,0.00022833,2]
[408224452,1773263451749,-1842.03266331,0.00023083,2]
[408224453,1773263451758,-242.15909246,0.00023096,2]
[408224454,1773263451767,-648.2956549,0.00023134,2]
[408224455,1773263451775,-167.9270802,0.00023134,2]
[408224456,1773263451784,-21860.0934894,0.00023179,2]
[408224457,1773263451793,-3577.5694299,0.00023179,2]
[408224458,1773263451802,-639.95,0.00023207,2]
[408224459,1773263451810,-509.0,0.000233,7]
[408224460,1773263451819,-557.97,0.00023396,2]
[408224461,1773263451828,-151.47,0.0002344,2]
[408224462,1773263451837,-2000.0,0.00023467,2]
[408224463,1773263451846,-1910.18787185,0.00023631,2]
[408224464,1773263451855,-621.78829552,0.00023642,2]
[408224465,1773263451864,-251.11897888,0.00023644,2]
[408224466,1773263451873,-2807.0,0.00023841,3]
[408224467,1773263451882,-294.03509995,0.00024177,2]
[408224468,1773263451891,-1980.86482311,0.00024179,2]
[408224469,1773263451900,-260.4103811,0.00024192,2]
[408224470,1773263451909,-841.0,0.00024192,3]
[408224471,1773263451918,-1181.27,0.000242,7]
[408224472,1773263451927,-1000.0,0.00024658,2]
[408224473,1773263451936,-150.0,0.00024658,2]
[408224474,1773263451945,-270.0455652,0.0002474,2]
[408224475,1773263451953,-981.71,0.000248,7]
[408224476,1773263451962,-3370.27070982,0.0002481,15]
[408224477,1773263451971,-175.41,0.00024929,2]
[408224478,1773263451980,-151.47,0.00024962,2]
[408224479,1773263451989,-999.99,0.0002498,2]
[408224480,1773263451999,-150.99,0.0002498,2]
[408224481,1773263452008,-299.99,0.0002498,7]
[408224482,1773263452017,-9999.99,0.0002498,2]
[408224483,1773263452026,-4472.7,0.0002498,2]
[408224484,1773263452035,-171.91068593,0.00025,5]
[408224485,1773263452044,-200.0,0.00025023,2]
[408224486,1773263452054,-270.0,0.00025023,2]
[408224487,1773263452063,-222.675,0.00025023,2]
[408224488,1773263452072,-250.0,0.00025023,2]
[408224489,1773263452081,-235.379,0.00025023,2]
[408224490,1773263452090,-219.836,0.00025023,2]
[408224491,1773263452099,-161.49,0.00025023,2]
[408224492,1773263452108,-250.0,0.00025023,2]
[408224493,1773263452118,-150.139,0.00025023,2]
[408224494,1773263452127,-192.92,0.00025023,2]
[408224495,1773263452137,-165.534,0.00025023,2]
[408224496,1773263452146,-214.222,0.00025023,2]
[408224497,1773263452155,-250.0,0.00025023,2]
[408224498,1773263452168,-177.0,0.00025023,2]
[408224499,1773263452178,-236.839,0.00025023,2]
[408224500,1773263452187,-163.314,0.00025023,2]
[408224501,1773263452196,-620.0,0.00025023,2]
[408224502,1773263452207,-3506.0,0.00025023,2]
[408224503,1773263452218,-1043.0,0.00025023,2]
[408224504,1773263452227,-1342.0,0.00025023,2]
[408224505,1773263452237,-1297.441,0.00025023,2]
[408224506,1773263452249,-151.309,0.00025023,2]
[408224507,1773263452259,-1213.0,0.00025023,2]
[408224508,1773263452268,-922.0,0.00025023,2]
[408224509,1773263452277,-2461.0,0.00025023,2]
[408224510,1773263452286,-5996.0,0.00025023,2]
[408224511,1773263452297,-3751.0,0.00025023,2]
[408224512,1773263452307,-262.53116903,0.00025288,2]
[408224513,1773263452317,-557.97,0.00025523,120]
[408224514,1773263452326,-2000.0,0.00025814,2]
[408224515,1773263452335,-150.0,0.0002589,2]
[408224516,1773263452344,-2922.14,0.00026086,2]
[408224517,1773263452353,-307.84755426,0.00026199,2]
[408224518,1773263452363,-644.79446246,0.00026381,2]
[408224519,1773263452375,-397.880876,0.00026381,2]
[408224520,1773263452386,-151.0,0.00026381,2]
[408224521,1773263452396,-397.880876,0.00026381,2]
[408224522,1773263452405,-151.0,0.00026381,2]
[408224523,1773263452414,-397.880876,0.00026381,2]
[408224524,1773263452424,-151.0,0.00026381,2]
[408224525,1773263452434,-397.880876,0.00026381,2]
[408224526,1773263452443,-509.0,0.0002645,10]
[408224527,1773263452453,-151.47,0.00026484,2]
[408224528,1773263452462,-165.53,0.00026689,2]
[408224529,1773263452472,-175.0,0.00026855,14]
[408224530,1773263452481,-450.0,0.00026855,14]
[408224531,1773263452490,-450.0,0.00026855,14]
[408224532,1773263452500,-450.0,0.00026855,14]
[408224533,1773263452509,-450.0,0.00026855,14]
[408224534,1773263452519,-450.0,0.00026855,14]
[408224535,1773263452529,-305.0,0.00026855,14]
[408224536,1773263452538,-350.0,0.00027123,7]
[408224537,1773263452547,-350.0,0.00027123,7]
[408224538,1773263452556,-350.0,0.00027123,7]
[408224539,1773263452565,-350.0,0.00027123,7]
[408224540,1773263452574,-350.0,0.00027123,7]
[408224541,1773263452583,-341.0,0.00027123,7]
[408224542,1773263452592,-300.0,0.00027123,2]
[408224543,1773263452662,-300.0,0.00027123,2]
[408224544,1773263452671,-300.0,0.00027123,2]
[408224545,1773263452681,-300.0,0.00027123,2]
[408224546,1773263452690,-300.0,0.00027123,2]
[408224547,1773263452700,-300.0,0.00027123,2]
[408224548,1773263452710,-300.0,0.00027123,2]
[408224549,1773263452720,-402.0,0.00027123,2]
[408224550,1773263452730,-150.0,0.00027126,14]
[408224551,1773263452740,-202.0,0.00027126,14]
[408224552,1773263452749,-150.0,0.00027185,2]
[408224553,1773263452758,-315.0,0.00027185,2]
[408224554,1773263452768,-150.0,0.00027369,2]
[408224555,1773263452779,-1050.0,0.00027397,7]
[408224556,1773263452790,-156.690195,0.00027397,2]
[408224557,1773263452800,-156.690195,0.00027397,2]
[408224558,1773263452810,-156.690195,0.00027397,2]
[408224559,1773263452819,-156.690195,0.00027397,2]
[408224560,1773263452828,-1586.748894,0.00027397,2]
[408224561,1773263452837,-1586.748894,0.00027397,2]
[408224562,1773263452846,-1586.748894,0.00027397,2]
[408224563,1773263452855,-1586.748894,0.00027397,2]
[408224564,1773263452864,-151.0,0.00027397,2]
[408224565,1773263452874,-151.0,0.00027397,2]
[408224566,1773263452883,-151.0,0.00027397,2]
[408224567,1773263452892,-151.0,0.00027397,2]
[408224568,1773263452901,-151.0,0.00027397,2]
[408224569,1773263452910,-1000.0,0.00027397,20]
[408224570,1773263452918,-300.0,0.00027397,2]
[408224571,1773263452927,-151.0,0.00027397,2]
[408224572,1773263452937,-151.0,0.00027397,2]
[408224573,1773263452948,-179.902495,0.00027397,2]
[408224574,1773263452962,-25894.62,0.00027397,10]
[408224575,1773263452973,-21578.85,0.00027397,10]
[408224576,1773263452983,-17982.37,0.00027397,10]
[408224577,1773263452992,-500.0,0.00027397,5]
[408224578,1773263453001,-160.56863716,0.00027397,5]
[408224579,1773263453010,-150.0,0.00027397,5]
[408224580,1773263453020,-243.87,0.000274,7]
[408224581,1773263453030,-160.0,0.000274,10]
[408224582,1773263453041,-2177.26,0.0002746,2]
[408224583,1773263453051,-1181.27,0.000275,7]
[408224584,1773263453060,-494.79,0.00027671,7]
[408224585,1773263453070,-250.0,0.0002772,7]
[408224586,1773263453080,-250.0,0.0002772,7]
[408224587,1773263453090,-250.0,0.0002772,7]
[408224588,1773263453099,-250.0,0.0002772,7]
[408224589,1773263453108,-250.0,0.0002772,7]
[408224590,1773263453119,-181.0,0.0002772,7]
[408224591,1773263453129,-288.0,0.0002772,7]
[408224592,1773263453139,-150.0,0.0002772,7]
[408224593,1773263453148,-251.0,0.0002772,7]
[408224594,1773263453157,-250.0,0.00027945,5]
[408224595,1773263453170,-151.0,0.00027998,2]
[408224596,1773263453179,-562.40267484,0.00028,5]
[408224597,1773263453188,-161.88,0.00028,2]
[408224598,1773263453197,-981.71,0.00028,7]
[408224599,1773263453207,-151.47,0.00028006,2]
[408224600,1773263453216,-3559.64064666,0.00028017,21]
[408224601,1773263453225,-150.0,0.00028023,2]
[408224602,1773263453235,-150.0,0.00028023,2]
[408224603,1773263453245,-150.0,0.00028023,2]
[408224604,1773263453255,-150.0,0.00028023,2]
[408224605,1773263453265,-150.0,0.00028023,2]
[408224606,1773263453274,-150.0,0.00028023,2]
[408224607,1773263453284,-150.0,0.00028023,2]
[408224608,1773263453293,-150.0,0.00028023,2]
[408224609,1773263453301,-150.0,0.00028023,2]
[408224610,1773263453310,-618.0,0.00028023,2]
[408224611,1773263453319,-3506.0,0.00028023,2]
[408224612,1773263453329,-1043.0,0.00028023,2]
[408224613,1773263453338,-1342.0,0.00028023,2]
[408224614,1773263453350,-1280.0,0.00028023,2]
[408224615,1773263453360,-150.0,0.00028023,2]
[408224616,1773263453369,-1213.0,0.00028023,2]
[408224617,1773263453378,-922.0,0.00028023,2]
[408224618,1773263453387,-2461.0,0.00028023,2]
[408224619,1773263453396,-3309.18,0.00028023,2]
[408224620,1773263453405,-3751.0,0.00028023,2]
[408224621,1773263453414,-2000.0,0.00028161,2]
[408224622,1773263453422,-292.35,0.00028472,2]
[408224623,1773263453432,-480.68807532,0.00028493,5]
[408224624,1773263453441,-150.0,0.00028544,2]
[408224625,1773263453451,-1037.18256372,0.00028767,5]
[408224626,1773263453460,-2000.0,0.000288,2]
[408224627,1773263453470,-200.0,0.000289,10]
[408224628,1773263453479,-500.0,0.00029011,14]
[408224629,1773263453489,-500.0,0.00029011,14]
[408224630,1773263453498,-500.0,0.00029011,14]
[408224631,1773263453507,-500.0,0.00029011,14]
[408224632,1773263453516,-500.0,0.00029011,14]
[408224633,1773263453526,-355.0,0.00029011,14]
[408224634,1773263453535,-200.0,0.00029011,14]
[408224635,1773263453544,-200.0,0.00029011,14]
[408224636,1773263453553,-200.0,0.00029011,14]
[408224637,1773263453563,-200.0,0.00029011,14]
[408224638,1773263453573,-347.0,0.00029011,14]
[408224639,1773263453584,-150.0,0.00029011,14]
[408224640,1773263453594,-150.0,0.00029011,14]
[408224641,1773263453603,-201.0,0.00029011,14]
[408224642,1773263453612,-200.0,0.00029011,14]
[408224643,1773263453623,-200.0,0.00029011,14]
[408224644,1773263453633,-200.0,0.00029011,14]
[408224645,1773263453643,-200.0,0.00029011,14]
[408224646,1773263453653,-199.0,0.00029011,14]
[408224647,1773263453662,-150.0,0.00029011,14]
[408224648,1773263453671,-178.0,0.00029011,14]
[408224649,1773263453682,-668.65185757,0.0002912,2]
[408224650,1773263453693,-344.0,0.00029233,2]
[408224651,1773263453702,-150.0,0.00029233,2]
[408224652,1773263453712,-243.0,0.00029233,2]
[408224653,1773263453726,-200.0,0.00029304,14]
[408224654,1773263453737,-200.0,0.00029304,14]
[408224655,1773263453748,-200.0,0.00029304,14]
[408224656,1773263453760,-200.0,0.00029304,14]
[408224657,1773263453770,-200.0,0.00029304,14]
[408224658,1773263453781,-171.0,0.00029304,14]
[408224659,1773263453792,-151.47,0.00029528,2]
[408224660,1773263453801,-2807.0,0.00029545,3]
[408224661,1773263453811,-509.0,0.000296,13]
[408224662,1773263453820,-400.0,0.000297,7]
[408224663,1773263453829,-400.0,0.000297,7]
[408224664,1773263453838,-400.0,0.000297,7]
[408224665,1773263453847,-400.0,0.000297,7]
[408224666,1773263453857,-400.0,0.000297,7]
[408224667,1773263453867,-336.0,0.000297,7]
[408224668,1773263453877,-150.0,0.000297,7]
[408224669,1773263453887,-259.0,0.000297,7]
[408224670,1773263453898,-150.0,0.000297,7]
[408224671,1773263453906,-150.0,0.000297,7]
[408224672,1773263453916,-150.0,0.000297,7]
[408224673,1773263453925,-150.0,0.000297,7]
[408224674,1773263453934,-217.0,0.000297,7]
[408224675,1773263453943,-150.0,0.00029971,2]
[408224676,1773263453954,-67565.05250503,0.0003,5]
[408224677,1773263453965,-243.87,0.0003,7]
[408224678,1773263453977,-647.36636919,0.0003,2]
[408224679,1773263453988,-1181.27,0.0003,7]
[408224680,1773263454000,-170.0,0.0003013,2]
[408224681,1773263454010,-192.36,0.00030411,120]
[408224682,1773263454019,-151.0,0.00030434,2]
[408224683,1773263454030,-345.57482756,0.00031,5]
[408224684,1773263454041,-150.0,0.00031023,2]
[408224685,1773263454050,-150.0,0.00031023,2]
[408224686,1773263454059,-3506.0,0.00031023,2]
[408224687,1773263454069,-1342.0,0.00031023,2]
[408224688,1773263454078,-1043.0,0.00031023,2]
[408224689,1773263454088,-1280.0,0.00031023,2]
[408224690,1773263454101,-150.0,0.00031023,2]
[408224691,1773263454110,-1213.0,0.00031023,2]
[408224692,1773263454119,-922.0,0.00031023,2]
[408224693,1773263454129,-2461.0,0.00031023,2]
[408224694,1773263454138,-3751.0,0.00031023,2]
[408224695,1773263454147,-151.47,0.0003105,2]
[408224696,1773263454157,-981.71,0.000314,7]
[408224697,1773263454169,-150.0,0.0003147,2]
[408224698,1773263454178,-225.0,0.00031788,2]
[408224699,1773263454187,-243.87,0.000318,7]
[408224700,1773263454197,-693.3919763,0.00031859,2]
[408224701,1773263454207,-500.0,0.0003211,2]
[408224702,1773263454216,-2807.0,0.00032249,11]
[408224703,1773263454225,-1934.0,0.000325,2]
[408224704,1773263454236,-151.47,0.00032572,2]
[408224705,1773263454245,-1000.0,0.000327,2]
[408224706,1773263454255,-509.0,0.0003275,16]
[408224707,1773263454264,-1181.27,0.000328,30]
[408224708,1773263454273,-151.0,0.00032871,2]
[408224709,1773263454283,-151.0,0.00032874,14]
[408224710,1773263454292,-151.0,0.00032874,14]
[408224711,1773263454301,-200094.48,0.00032877,2]
[408224712,1773263454310,-150.0,0.00033043,2]
[408224713,1773263454320,-243.87,0.000331,14]
[408224714,1773263454330,-1000.0,0.00033154,2]
[408224715,1773263454339,-715.0,0.00033209,11]
[408224716,1773263454349,-400.0,0.00033313,36]
[408224717,1773263454359,-2807.0,0.00033529,11]
[408224718,1773263454368,-500.0,0.0003381,5]
[408224719,1773263454377,-27161.0,0.00033967,2]
[408224720,1773263454387,-150.0,0.00034023,2]
[408224721,1773263454397,-3506.0,0.00034023,2]
[408224722,1773263454406,-1342.0,0.00034023,2]
[408224723,1773263454416,-1043.0,0.00034023,2]
[408224724,1773263454426,-1280.0,0.00034023,2]
[408224725,1773263454436,-150.0,0.00034023,2]
[408224726,1773263454445,-323.929,0.00034023,2]
[408224727,1773263454455,-693.476,0.00034023,2]
[408224728,1773263454464,-2461.0,0.00034023,2]
[408224729,1773263454474,-3751.0,0.00034023,2]
[408224730,1773263454484,-981.71,0.000342,14]
[408224731,1773263454494,-719.04747942,0.00034598,2]
[408224732,1773263454504,-387.65176001,0.0003465,2]
[408224733,1773263454514,-160.28518464,0.0003465,2]
[408224734,1773263454524,-2010.60523398,0.0003465,2]
[408224735,1773263454533,-150.0,0.00034696,2]
[408224736,1773263454543,-500.51441936,0.00034746,28]
[408224737,1773263454552,-1500.0,0.00034795,2]
[408224738,1773263454562,-5532.0,0.000348,5]
[408224739,1773263454571,-345.0,0.00035,15]
[408224740,1773263454581,-200.0,0.00035,3]
[408224741,1773263454591,-243.87,0.000351,14]
[408224742,1773263454600,-1000.0,0.0003518,5]
[408224743,1773263454610,-151.0,0.00035307,2]
[408224744,1773263454620,-1181.27,0.000354,30]
[408224745,1773263454630,-500.0,0.00035616,7]
[408224746,1773263454640,-500.0,0.00035616,7]
[408224747,1773263454650,-500.0,0.00035616,7]
[408224748,1773263454659,-500.0,0.00035616,7]
[408224749,1773263454669,-500.0,0.00035616,7]
[408224750,1773263454678,-500.0,0.00035616,7]
[408224751,1773263454688,-500.0,0.00035616,7]
[408224752,1773263454697,-500.0,0.00035616,7]
[408224753,1773263454707,-500.0,0.00035616,7]
[408224754,1773263454718,-500.0,0.00035616,7]